bitfinex/quotes_BTCUSD_20241022
["timestamp","ask_amount","ask_price","bid_price","bid_amount"]
[1729625494591,0.443818,67596.0,67589.0,0.152952]
[1729625494805,0.22196409,67598.0,67592.0,0.005]
[1729625495166,0.147936,67597.0,67591.0,0.147947]
[1729625495377,0.147936,67597.0,67592.0,0.005]
[1729625495606,0.22196409,67598.0,67592.0,0.005]
[1729625495833,0.22196409,67598.0,67592.0,0.152946]
[1729625496058,0.22196409,67598.0,67592.0,0.005]
[1729625496288,0.36989709,67598.0,67592.0,0.152946]
[1729625497226,0.22196409,67598.0,67592.0,0.152946]
[1729625497455,0.36989709,67598.0,67592.0,0.152946]
[1729625498168,0.295875,67596.0,67589.0,0.005]
[1729625498393,0.295875,67596.0,67587.0,0.005]
[1729625498394,0.25539265,67595.0,67587.0,0.005]
[1729625498660,0.25539265,67595.0,67586.0,0.005]
[1729625498880,0.25539265,67595.0,67590.0,0.005]
[1729625498881,0.147943,67594.0,67590.0,0.005]
[1729625499102,0.25539265,67595.0,67590.0,0.005]
[1729625499329,0.148771,67593.0,67589.0,0.005]
[1729625499557,0.148771,67593.0,67586.0,0.147959]
[1729625499558,0.147947,67592.0,67586.0,0.147959]
[1729625499843,0.148771,67593.0,67587.0,0.147957]
[1729625500056,0.148771,67593.0,67584.0,0.005]
[1729625500057,0.295895,67592.0,67584.0,0.005]
[1729625500275,0.14795,67591.0,67586.0,0.147958]
[1729625500507,0.36991409,67591.0,67586.0,0.147958]
[1729625500728,0.22196409,67591.0,67587.0,0.147955]
[1729625500954,0.22196409,67591.0,67589.0,0.005]
[1729625501194,0.22196409,67591.0,67588.0,0.005]
[1729625501423,0.22196409,67591.0,67585.0,0.295923]
[1729625501652,0.22196409,67591.0,67589.0,0.005]
[1729625502110,0.22196409,67591.0,67589.0,0.152951]
[1729625502779,0.22196409,67591.0,67589.0,0.005]
[1729625503004,0.22196409,67591.0,67590.0,0.14795]
[1729625503952,0.22196409,67591.0,67589.0,0.005]
[1729625504430,0.147956,67588.0,67584.0,0.147964]
[1729625504659,0.147956,67588.0,67580.0,0.01]
[1729625504660,0.16824145,67585.0,67580.0,0.005]
[1729625504897,0.16824145,67585.0,67584.0,0.147964]
[1729625505389,0.26174145,67588.0,67587.0,0.147957]
[1729625505607,0.32982922,67588.0,67587.0,0.147957]
[1729625506285,0.26174145,67588.0,67585.0,0.14796]
[1729625506493,0.26174145,67588.0,67580.0,0.005]
[1729625506700,0.26174145,67588.0,67583.0,0.147964]
[1729625506909,0.26174145,67588.0,67586.0,0.147958]
[1729625507111,0.26174145,67588.0,67584.0,0.295925]
[1729625507330,0.26174145,67588.0,67586.0,0.147958]
[1729625507563,0.26174145,67588.0,67587.0,0.147957]
[1729625508459,0.26174145,67588.0,67582.0,0.295935]
[1729625508711,0.26174145,67588.0,67582.0,0.147966]
[1729625508712,0.16824145,67583.0,67582.0,0.147966]
[1729625508981,0.0935,67588.0,67581.0,0.29594]
[1729625508982,0.16824145,67586.0,67581.0,0.29594]
[1729625509211,0.16824145,67586.0,67583.0,0.147965]
[1729625509673,0.16824145,67586.0,67584.0,0.147963]
[1729625510348,0.16824145,67586.0,67582.0,0.005]
[1729625510542,0.16824145,67586.0,67584.0,0.147963]
[1729625513300,0.16824145,67586.0,67583.0,0.005]
[1729625513519,0.16824145,67586.0,67584.0,0.147963]
[1729625514187,0.16824145,67586.0,67583.0,0.005]
[1729625514405,0.16824145,67586.0,67584.0,0.147963]
[1729625515380,0.16824145,67586.0,67582.0,0.295936]
[1729625515404,0.16824145,67586.0,67585.0,0.147961]
[1729625517377,0.16824145,67586.0,67583.0,0.147965]
[1729625517619,0.16824145,67586.0,67582.0,0.295936]
[1729625517851,0.16824145,67586.0,67584.0,0.147962]
[1729625519394,0.16824145,67586.0,67584.0,0.147963]
[1729625520309,0.31620045,67586.0,67582.0,0.147966]
[1729625520537,0.22196409,67584.0,67579.0,0.02316331]
[1729625520751,0.31621345,67580.0,67579.0,0.02316331]
[1729625521353,0.147975,67579.0,67575.0,0.005]
[1729625521599,0.16824145,67580.0,67575.0,0.005]
[1729625521987,0.16824145,67580.0,67575.0,0.152982]
[1729625522922,0.16824145,67580.0,67575.0,0.147982]
[1729625523145,0.16824145,67580.0,67575.0,0.152982]
[1729625523771,0.31621345,67580.0,67575.0,0.152982]
[1729625524204,0.147976,67579.0,67575.0,0.005]
[1729625524428,0.31621445,67580.0,67574.0,0.005]
[1729625524622,0.31621445,67580.0,67575.0,0.005]
[1729625524845,0.31621445,67580.0,67573.0,0.147987]
[1729625525054,0.31621445,67580.0,67575.0,0.005]
[1729625525260,0.16824145,67580.0,67575.0,0.005]
[1729625526313,0.31621345,67580.0,67574.0,0.147984]
[1729625526534,0.31621345,67580.0,67575.0,0.005]
[1729625528245,0.16824145,67580.0,67575.0,0.152982]
[1729625529320,0.16824145,67580.0,67575.0,0.005]
[1729625529532,0.31621345,67580.0,67574.0,0.147984]
[1729625529724,0.147975,67579.0,67573.0,0.005]
[1729625529950,0.16824145,67580.0,67574.0,0.147985]
[1729625530182,0.16824145,67580.0,67575.0,0.005]
[1729625530407,0.16824145,67580.0,67575.0,0.152983]
[1729625530668,0.31621345,67580.0,67575.0,0.005]
[1729625531104,0.46418845,67580.0,67572.0,0.149641]
[1729625531318,0.147974,67579.0,67573.0,0.147987]
[1729625531542,0.16824145,67574.0,67572.0,0.001652]
[1729625531767,0.0782,67572.0,67560.0,0.005]
[1729625532054,0.148005,67566.0,67559.0,0.148018]
[1729625532281,0.54636915,67571.0,67558.0,0.148019]
[1729625532282,0.295993,67569.0,67558.0,0.148019]
[1729625532592,0.16824145,67564.0,67558.0,0.148019]
[1729625532808,0.16824145,67564.0,67559.0,0.148017]
[1729625533036,0.16824145,67564.0,67560.0,0.148015]
[1729625533489,0.16824145,67564.0,67557.0,0.296044]
[1729625533704,0.16824145,67564.0,67553.0,0.296062]
[1729625533705,0.31624845,67564.0,67553.0,0.296062]
[1729625533874,0.16824145,67564.0,67556.0,0.29605]
[1729625534090,0.16824145,67564.0,67563.0,0.006652]
[1729625534291,0.16824145,67564.0,67563.0,0.001652]
[1729625534493,0.31624845,67564.0,67563.0,0.001652]
[1729625534773,0.57822915,67564.0,67563.0,0.001652]
[1729625534980,1.20415905,67564.0,67563.0,0.001652]
[1729625535303,1.0359176,67564.0,67563.0,0.001652]
[1729625535516,1.20415905,67564.0,67563.0,0.001652]
[1729625535725,1.0359176,67564.0,67563.0,0.001652]
[1729625538721,1.18487675,67564.0,67563.0,0.001652]
[1729625540497,1.0359176,67564.0,67563.0,0.001652]
[1729625540960,1.04140633,67564.0,67563.0,0.001652]
[1729625542539,0.64399633,67564.0,67563.0,0.001652]
[1729625542747,1.04140633,67564.0,67563.0,0.001652]
[1729625543376,0.295984,67571.0,67563.0,0.001652]
[1729625543613,0.37092324,67570.0,67563.0,0.001652]
[1729625543876,0.37092324,67570.0,67565.0,0.148005]
[1729625544119,0.37092324,67570.0,67563.0,0.001652]
[1729625544365,0.64020866,67570.0,67563.0,0.001652]
[1729625544614,0.147997,67569.0,67563.0,0.001652]
[1729625544843,0.53916469,67570.0,67563.0,0.001652]
[1729625545092,0.16824145,67566.0,67563.0,0.001652]
[1729625546740,0.16824145,67566.0,67563.0,0.14966]
[1729625548346,0.16824145,67566.0,67563.0,0.001652]
[1729625549155,0.68715969,67570.0,67563.0,0.001652]
[1729625549356,0.147997,67569.0,67563.0,0.001652]
[1729625549605,0.68715969,67570.0,67563.0,0.149661]
[1729625549920,0.147997,67569.0,67563.0,0.149661]
[1729625550374,0.147997,67569.0,67563.0,0.001652]
[1729625551512,0.53916469,67570.0,67563.0,0.001652]
[1729625551720,0.295998,67568.0,67563.0,0.001652]
[1729625551939,0.64029246,67570.0,67563.0,0.001652]
[1729625551940,0.295997,67569.0,67563.0,0.001652]
[1729625552152,0.64029246,67570.0,67563.0,0.001652]
[1729625552369,0.148,67568.0,67563.0,0.001652]
[1729625552585,0.16824145,67564.0,67563.0,0.001652]
[1729625554178,0.148005,67566.0,67563.0,0.001652]
[1729625554630,0.31624845,67564.0,67563.0,0.001652]
[1729625554871,0.16824145,67564.0,67563.0,0.001652]
[1729625556027,0.148002,67567.0,67563.0,0.001652]
[1729625556258,0.31624045,67568.0,67563.0,0.001652]
[1729625556508,0.147996,67569.0,67563.0,0.001652]
[1729625556739,0.295986,67571.0,67563.0,0.001652]
[1729625556973,0.147999,67568.0,67563.0,0.001652]
[1729625557433,0.296001,67568.0,67563.0,0.001652]
[1729625557721,0.148002,67567.0,67563.0,0.001652]
[1729625557941,0.296001,67568.0,67563.0,0.001652]
[1729625558623,0.148001,67567.0,67563.0,0.001652]
[1729625560251,0.296001,67568.0,67563.0,0.001652]
[1729625560490,0.148007,67564.0,67563.0,0.001652]
[1729625560939,0.148004,67566.0,67563.0,0.001652]
[1729625562282,0.148001,67567.0,67563.0,0.001652]
[1729625562523,0.148003,67566.0,67563.0,0.001652]
[1729625564350,0.444001,67568.0,67563.0,0.001652]
[1729625564558,0.147996,67569.0,67563.0,0.001652]
[1729625564773,0.83515669,67570.0,67563.0,0.001652]
[1729625564774,0.148002,67567.0,67563.0,0.001652]
[1729625566296,0.53916469,67570.0,67563.0,0.001652]
[1729625566508,0.148004,67566.0,67563.0,0.001652]
[1729625566925,0.591986,67569.0,67563.0,0.001652]
[1729625567205,0.148002,67567.0,67563.0,0.001652]
[1729625568098,0.148007,67564.0,67563.0,0.001652]
[1729625568774,0.296012,67565.0,67563.0,0.001652]
[1729625568775,0.148006,67565.0,67563.0,0.001652]
[1729625569249,0.42392277,67566.0,67563.0,0.001652]
[1729625569485,0.148005,67565.0,67563.0,0.001652]
[1729625569723,0.23479908,67564.0,67563.0,0.001652]
[1729625569953,0.08679208,67564.0,67563.0,0.001652]
[1729625571160,0.148007,67565.0,67563.0,0.001652]
[1729625571405,0.148007,67564.0,67563.0,0.001652]
[1729625571640,0.148006,67565.0,67563.0,0.001652]
[1729625572359,0.29696615,67564.0,67563.0,0.001652]
[1729625572604,0.29696615,67564.0,67550.0,0.001652]
[1729625572605,0.16824145,67552.0,67550.0,0.001652]
[1729625572826,0.16824145,67552.0,67551.0,0.005]
[1729625573048,0.148028,67555.0,67551.0,0.005]
[1729625573266,0.148028,67555.0,67553.0,0.005]
[1729625573267,0.148029,67554.0,67553.0,0.005]
[1729625573479,0.51802009,67555.0,67553.0,0.005]
[1729625573480,0.36999109,67555.0,67553.0,0.005]
[1729625573698,0.33499624,67555.0,67553.0,0.005]
[1729625573917,0.22196409,67555.0,67553.0,0.005]
[1729625575301,0.22196409,67555.0,67550.0,0.006652]
[1729625575517,0.22196409,67555.0,67552.0,0.005]
[1729625575738,0.22196409,67555.0,67551.0,0.005]
[1729625575955,0.22196409,67555.0,67552.0,0.005]
[1729625576162,0.11356155,67554.0,67552.0,0.005]
[1729625580566,0.22196409,67555.0,67552.0,0.153033]
[1729625580800,0.0967,67563.0,67552.0,0.005]
[1729625581017,0.269,67561.0,67556.0,0.148024]
[1729625581460,0.269,67561.0,67555.0,0.148026]
[1729625581673,0.03222302,67561.0,67555.0,0.148026]
[1729625581910,0.249,67560.0,67555.0,0.148026]
[1729625582379,0.397017,67560.0,67553.0,0.149683]
[1729625582602,0.03222302,67561.0,67554.0,0.148029]
[1729625582813,0.321,67560.0,67554.0,0.148029]
[1729625583024,0.03222302,67561.0,67555.0,0.148027]
[1729625583238,0.247,67560.0,67555.0,0.148027]
[1729625583482,0.395018,67560.0,67553.0,0.001652]
[1729625583687,0.03222302,67561.0,67553.0,0.001652]
[1729625583896,0.38,67560.0,67554.0,0.148027]
[1729625584114,0.354,67560.0,67554.0,0.148027]
[1729625585272,0.03222302,67561.0,67554.0,0.148027]
[1729625585495,0.238,67560.0,67554.0,0.148027]
[1729625586499,0.392721,67563.0,67554.0,0.148027]
[1729625586500,0.0967,67563.0,67559.0,0.148018]
[1729625586738,0.36248209,67569.0,67559.0,0.148018]
[1729625586739,0.22196409,67562.0,67559.0,0.005]
[1729625586954,0.22196409,67562.0,67561.0,0.148014]
[1729625587401,0.22196409,67562.0,67559.0,0.301037]
[1729625587402,0.22196409,67562.0,67559.0,0.005]
[1729625587640,0.22196409,67562.0,67559.0,0.153017]
[1729625587877,0.148,67568.0,67560.0,0.148016]
[1729625588121,0.22196409,67563.0,67560.0,0.148016]
[1729625588366,0.22196409,67563.0,67559.0,0.005]
[1729625588587,0.22196409,67563.0,67560.0,0.148016]
[1729625589059,0.22196409,67563.0,67561.0,0.148013]
[1729625589285,0.22196409,67563.0,67560.0,0.148016]
[1729625589512,0.06074199,67569.0,67559.0,0.005]
[1729625589799,0.20873899,67569.0,67562.0,0.148011]
[1729625590508,0.20873899,67569.0,67559.0,0.005]
[1729625590745,0.20873899,67569.0,67561.0,0.148013]
[1729625590978,0.147999,67568.0,67561.0,0.148013]
[1729625592084,0.06074199,67569.0,67559.0,0.005]
[1729625592320,0.443998,67568.0,67560.0,0.148015]
[1729625592534,0.49127538,67568.0,67560.0,0.148015]
[1729625592746,0.19527738,67568.0,67562.0,0.001652]
[1729625593206,0.148005,67566.0,67562.0,0.001652]
[1729625595334,0.34327538,67568.0,67562.0,0.001652]
[1729625595519,0.49127638,67568.0,67562.0,0.001652]
[1729625595698,0.148001,67567.0,67562.0,0.001652]
[1729625600195,0.04727738,67568.0,67562.0,0.001652]
[1729625600386,0.148001,67567.0,67562.0,0.001652]
[1729625601956,0.444005,67567.0,67562.0,0.001652]
[1729625602387,0.148003,67566.0,67562.0,0.001652]
[1729625603035,0.148002,67567.0,67562.0,0.001652]
[1729625604419,0.148828,67567.0,67562.0,0.001652]
[1729625606156,0.28432102,67567.0,67562.0,0.001652]
[1729625610374,0.28432002,67567.0,67562.0,0.001652]
[1729625610595,0.148827,67567.0,67562.0,0.001652]
[1729625611925,0.148004,67566.0,67562.0,0.001652]
[1729625612591,0.148007,67565.0,67562.0,0.001652]
[1729625612805,0.000826,67567.0,67562.0,0.001652]
[1729625612806,0.148829,67567.0,67562.0,0.001652]
[1729625613036,0.11544859,67566.0,67562.0,0.001652]
[1729625614156,0.148829,67567.0,67562.0,0.001652]
[1729625618786,0.148003,67566.0,67562.0,0.001652]
[1729625622175,0.000826,67567.0,67562.0,0.001652]
[1729625622394,0.148828,67567.0,67562.0,0.001652]
[1729625622808,0.148004,67566.0,67562.0,0.001652]
[1729625626622,0.000826,67567.0,67562.0,0.001652]
[1729625626852,0.148827,67567.0,67562.0,0.001652]
[1729625627275,0.148006,67565.0,67562.0,0.001652]
[1729625628620,0.148003,67566.0,67562.0,0.001652]
[1729625629922,0.296828,67567.0,67562.0,0.001652]
[1729625630149,0.148009,67564.0,67562.0,0.001652]
[1729625630365,0.14801,67563.0,67562.0,0.001652]
[1729625630587,0.444018,67565.0,67562.0,0.001652]
[1729625630804,0.148007,67565.0,67562.0,0.001652]
[1729625632394,0.04439466,67566.0,67562.0,0.001652]
[1729625632606,0.148005,67565.0,67562.0,0.001652]
[1729625633036,0.19239766,67566.0,67562.0,0.001652]
[1729625633459,0.148003,67566.0,67562.0,0.001652]
[1729625634083,0.04439466,67565.0,67562.0,0.001652]
[1729625634752,0.19239766,67566.0,67562.0,0.001652]
[1729625634966,0.04439466,67566.0,67562.0,0.001652]
[1729625635836,0.04442341,67566.0,67562.0,0.001652]
[1729625636509,0.19242641,67566.0,67562.0,0.001652]
[1729625638509,0.14801,67563.0,67562.0,0.001652]
[1729625638724,0.148007,67565.0,67562.0,0.001652]
[1729625638944,0.296015,67564.0,67562.0,0.001652]
[1729625639185,0.148008,67564.0,67562.0,0.001652]
[1729625639405,0.11601078,67565.0,67562.0,0.001652]
[1729625639627,0.26401778,67565.0,67562.0,0.001652]
[1729625640091,0.09679033,67564.0,67562.0,0.001652]
[1729625640743,0.26401778,67565.0,67562.0,0.001652]
[1729625640969,0.16043464,67565.0,67562.0,0.001652]
[1729625641435,0.30844064,67565.0,67562.0,0.001652]
[1729625642374,0.04442386,67564.0,67562.0,0.001652]
[1729625642813,0.30844064,67565.0,67562.0,0.001652]
[1729625643499,0.04442386,67565.0,67562.0,0.001652]
[1729625643986,0.30926464,67566.0,67562.0,0.001652]
[1729625644207,0.30926464,67566.0,67562.0,0.00126963]
[1729625644878,0.04442386,67565.0,67559.0,0.14928763]
[1729625645312,0.26484078,67566.0,67559.0,0.14928763]
[1729625645313,0.04442386,67564.0,67559.0,0.14928763]
[1729625645770,0.04442386,67564.0,67560.0,0.148016]
[1729625646000,0.000826,67566.0,67565.0,0.163005]
[1729625646226,0.000826,67566.0,67565.0,0.31692384]
[1729625646457,0.000826,67566.0,67565.0,0.31396415]
[1729625646932,0.000826,67566.0,67565.0,0.33696415]
[1729625651780,0.000826,67566.0,67565.0,0.45196415]
[1729625653995,0.000826,67566.0,67565.0,0.56797493]
[1729625657550,0.000826,67566.0,67565.0,0.45196415]
[1729625660178,0.000826,67566.0,67565.0,0.56797493]
[1729625660875,0.000826,67566.0,67565.0,0.45196415]
[1729625662822,0.000826,67566.0,67565.0,0.42896415]
[1729625666999,0.000826,67566.0,67565.0,0.42396415]
[1729625667218,0.000826,67566.0,67565.0,0.268005]
[1729625667219,0.077626,67566.0,67565.0,0.268005]
[1729625667442,0.19363678,67566.0,67565.0,0.163005]
[1729625667657,0.28873678,67566.0,67565.0,0.163005]
[1729625667869,0.172726,67566.0,67565.0,0.163005]
[1729625673437,0.172726,67566.0,67564.0,0.015]
[1729625673671,0.172726,67566.0,67555.0,0.001652]
[1729625673672,0.320316,67560.0,67555.0,0.001652]
[1729625673900,0.320316,67560.0,67555.0,0.006652]
[1729625674122,0.320316,67560.0,67556.0,0.005]
[1729625674344,0.43632678,67560.0,67558.0,0.005]
[1729625675530,0.43632678,67560.0,67557.0,0.005]
[1729625677817,0.43632678,67560.0,67558.0,0.005]
[1729625678291,0.28831078,67560.0,67558.0,0.005]
[1729625679618,0.28831078,67560.0,67555.0,0.149678]
[1729625679857,0.43632678,67560.0,67558.0,0.005]
[1729625680589,0.28831078,67560.0,67558.0,0.005]
[1729625681019,0.43632678,67560.0,67558.0,0.005]
[1729625681251,0.28831078,67560.0,67558.0,0.005]
[1729625683883,0.33476833,67560.0,67558.0,0.005]
[1729625685007,0.28831078,67560.0,67558.0,0.005]
[1729625685246,0.43632678,67560.0,67558.0,0.005]
[1729625685464,0.28831078,67560.0,67558.0,0.005]
[1729625688576,0.43632678,67560.0,67558.0,0.005]
[1729625688791,0.28831078,67560.0,67558.0,0.005]
[1729625689220,0.28831078,67560.0,67556.0,0.148024]
[1729625689435,0.28831078,67560.0,67558.0,0.005]
[1729625689889,0.39863698,67560.0,67558.0,0.005]
[1729625692562,0.28831078,67560.0,67558.0,0.005]
[1729625694565,0.28831078,67560.0,67558.0,0.15302]
[1729625694815,0.28831078,67560.0,67558.0,0.005]
[1729625695277,0.28831078,67560.0,67558.0,0.153019]
[1729625695479,0.28831078,67560.0,67558.0,0.005]
[1729625696575,0.28831078,67560.0,67559.0,0.14967]
[1729625697021,0.28831078,67560.0,67559.0,0.001652]
[1729625701501,0.43632678,67560.0,67559.0,0.001652]
[1729625702191,0.43632678,67560.0,67553.0,0.001652]
[1729625702192,0.175,67559.0,67553.0,0.001652]
[1729625702424,0.175,67559.0,67544.0,0.01]
[1729625702425,0.175,67545.0,67541.0,0.01]
[1729625702660,0.175,67545.0,67522.0,0.02309]
[1729625702661,0.11601078,67542.0,67536.0,0.005]
[1729625702873,0.11601078,67537.0,67536.0,0.005]
[1729625703307,0.11601078,67537.0,67532.0,0.005]
[1729625703308,0.0826,67536.0,67532.0,0.005]
[1729625703554,0.11601078,67533.0,67532.0,0.005]
[1729625704022,0.11601078,67533.0,67528.0,0.005]
[1729625704023,0.175,67532.0,67528.0,0.005]
[1729625704247,0.175,67532.0,67525.0,0.001652]
[1729625704248,0.0826,67528.0,67525.0,0.001652]
[1729625704473,0.38011256,67526.0,67525.0,0.001652]
[1729625704698,0.26410178,67526.0,67525.0,0.001652]
[1729625705151,0.21633846,67526.0,67525.0,0.001652]
[1729625705637,0.1414992,67526.0,67525.0,0.001652]
[1729625706526,0.11601078,67526.0,67525.0,0.001652]
[1729625712539,0.0924,67527.0,67525.0,0.001652]
[1729625712540,0.0924,67527.0,67526.0,0.148091]
[1729625713722,0.0924,67527.0,67525.0,0.001652]
[1729625713978,0.0924,67527.0,67525.0,0.149743]
[1729625715155,0.0924,67527.0,67525.0,0.001652]
[1729625715619,0.22196409,67526.0,67525.0,0.001652]
[1729625715872,0.06610559,67526.0,67525.0,0.001652]
[1729625717043,0.1696,67534.0,67528.0,0.005]
[1729625717046,0.31446409,67542.0,67533.0,0.005]
[1729625717292,0.31446409,67542.0,67536.0,0.153068]
[1729625717293,0.0771,67540.0,67536.0,0.153068]
[1729625717530,0.0771,67540.0,67539.0,0.148062]
[1729625718507,0.0925,67542.0,67541.0,0.148058]
[1729625719467,0.0822,67545.0,67541.0,0.148058]
[1729625719717,0.0822,67545.0,67544.0,0.005]
[1729625719964,0.22196409,67563.0,67552.0,0.296068]
[1729625719965,0.22196409,67556.0,67552.0,0.296068]
[1729625720220,0.22196409,67556.0,67554.0,0.148029]
[1729625720850,0.22196409,67556.0,67551.0,0.303072]
[1729625720851,0.22196409,67556.0,67553.0,0.148029]
[1729625721272,0.22196409,67556.0,67554.0,0.148029]
[1729625721451,0.0961,67557.0,67554.0,0.148029]
[1729625721653,0.0961,67557.0,67554.0,0.148028]
[1729625721887,0.0961,67557.0,67555.0,0.148025]
[1729625722121,0.0961,67557.0,67553.0,0.14803]
[1729625723776,0.0961,67557.0,67554.0,0.148029]
[1729625725283,0.000826,67556.0,67554.0,0.148029]
[1729625725758,0.000826,67556.0,67552.0,0.296068]
[1729625726007,0.000826,67556.0,67554.0,0.148029]
[1729625726663,0.000826,67556.0,67553.0,0.148031]
[1729625730237,0.000826,67556.0,67555.0,0.163027]
[1729625731486,0.000826,67556.0,67555.0,0.01]
[1729625731488,0.000826,67556.0,67548.0,0.002]
[1729625731489,0.000826,67556.0,67546.0,0.306091]
[1729625731732,0.148034,67552.0,67546.0,0.158046]
[1729625732202,0.00704426,67551.0,67546.0,0.158046]
[1729625732434,0.16837113,67548.0,67542.0,0.005]
[1729625732698,0.16837113,67548.0,67537.0,0.01]
[1729625732699,0.16837113,67545.0,67537.0,0.01]
[1729625732924,0.1768,67547.0,67537.0,0.01]
[1729625732925,0.16837113,67540.0,67537.0,0.01]
[1729625733374,0.00700128,67539.0,67537.0,0.01]
[1729625733595,0.00700128,67539.0,67538.0,0.148064]
[1729625734085,0.37001309,67546.0,67540.0,0.148059]
[1729625734086,0.39033522,67546.0,67540.0,0.148059]
[1729625734338,0.22196409,67546.0,67538.0,0.296129]
[1729625734628,0.00700655,67545.0,67541.0,0.01]
[1729625734861,0.00700655,67545.0,67544.0,0.148051]
[1729625734862,0.22196409,67545.0,67544.0,0.148051]
[1729625735322,0.1768,67547.0,67541.0,0.01]
[1729625735574,0.22196409,67546.0,67541.0,0.01]
[1729625735813,0.1768,67547.0,67545.0,0.148048]
[1729625736276,0.1768,67547.0,67543.0,0.444159]
[1729625736549,0.1768,67547.0,67541.0,0.01]
[1729625736795,0.1768,67547.0,67543.0,0.148053]
[1729625737476,0.22196409,67546.0,67543.0,0.148053]
[1729625739012,0.1768,67547.0,67542.0,0.296111]
[1729625739178,0.1768,67547.0,67543.0,0.148053]
[1729625739627,0.1768,67547.0,67541.0,0.158057]
[1729625739840,0.032484,67546.0,67541.0,0.158057]
[1729625740269,0.032484,67546.0,67542.0,0.148055]
[1729625740482,0.1768,67547.0,67542.0,0.148055]
[1729625741130,0.1768,67547.0,67541.0,0.01]
[1729625741341,0.1768,67547.0,67542.0,0.148056]
[1729625747058,0.1768,67547.0,67541.0,0.01]
[1729625747288,0.0759,67542.0,67533.0,0.01]
[1729625747508,0.31643513,67538.0,67529.0,0.005]
[1729625747756,0.31643513,67538.0,67526.0,0.003652]
[1729625747757,0.48833513,67538.0,67526.0,0.001652]
[1729625747995,0.63729428,67538.0,67526.0,0.001652]
[1729625748637,1.03470428,67538.0,67526.0,0.001652]
[1729625748853,1.18366343,67538.0,67526.0,0.001652]
[1729625750173,1.18366343,67538.0,67526.0,0.149742]
[1729625751551,1.18366343,67538.0,67527.0,0.148088]
[1729625755595,1.18366343,67538.0,67526.0,0.001652]
[1729625756037,1.18366343,67538.0,67527.0,0.148088]
[1729625758264,1.18366343,67538.0,67530.0,0.02318229]
[1729625759125,1.18366343,67538.0,67527.0,0.148088]
[1729625759563,1.18366343,67538.0,67532.0,0.02318215]
[1729625760017,0.1719,67538.0,67532.0,0.03318215]
[1729625760232,0.1719,67538.0,67537.0,0.149718]
[1729625760450,0.1719,67538.0,67537.0,0.001652]
[1729625763615,0.16837113,67542.0,67537.0,0.006652]
[1729625763843,0.04416487,67551.0,67541.0,0.005]
[1729625763844,0.0767,67544.0,67541.0,0.005]
[1729625764067,0.0767,67544.0,67542.0,0.148055]
[1729625764293,0.0767,67544.0,67541.0,0.005]
[1729625764484,0.0767,67544.0,67542.0,0.148055]
[1729625765186,0.0767,67544.0,67543.0,0.148053]
[1729625765629,0.0767,67544.0,67543.0,0.150053]
[1729625765855,0.0767,67544.0,67543.0,0.148053]
[1729625770345,0.0767,67544.0,67541.0,0.301113]
[1729625770346,0.0934,67546.0,67544.0,0.296102]
[1729625770574,0.0934,67546.0,67542.0,0.148056]
[1729625770794,0.0934,67546.0,67544.0,0.14805]
[1729625771024,0.0934,67546.0,67543.0,0.148053]
[1729625771768,0.0934,67546.0,67542.0,0.296111]
[1729625771978,0.0934,67546.0,67543.0,0.148053]
[1729625773731,0.0934,67546.0,67544.0,0.002]
[1729625773952,0.0934,67546.0,67543.0,0.148053]
[1729625776962,0.0934,67546.0,67543.0,0.138053]
[1729625779392,0.0934,67546.0,67542.0,0.148055]
[1729625780057,0.02382374,67545.0,67542.0,0.148055]
[1729625780488,0.0934,67546.0,67541.0,0.005]
[1729625780705,0.0934,67546.0,67543.0,0.148053]
[1729625782250,0.0934,67546.0,67542.0,0.148055]
[1729625782520,0.11609113,67545.0,67542.0,0.148056]
[1729625785871,0.11609113,67545.0,67544.0,0.148051]
[1729625786105,0.11609113,67545.0,67542.0,0.148054]
[1729625788294,0.11609113,67545.0,67541.0,0.301113]
[1729625788513,0.11609113,67545.0,67543.0,0.148053]
[1729625792319,0.11609113,67545.0,67542.0,0.148056]
[1729625792670,0.242273,67546.0,67537.0,0.001652]
[1729625792671,0.23218226,67543.0,67537.0,0.001652]
[1729625792825,0.23218226,67543.0,67526.0,0.001652]
[1729625792826,0.296138,67536.0,67529.0,0.005]
[1729625793080,0.0787,67541.0,67526.0,0.001652]
[1729625793081,0.320588,67527.0,67526.0,0.001652]
[1729625793555,0.70172941,67527.0,67526.0,0.001652]
[1729625793793,0.74792811,67527.0,67526.0,0.001652]
[1729625794056,1.21180412,67527.0,67526.0,0.001652]
[1729625794290,1.23396055,67527.0,67526.0,0.001652]
[1729625794530,1.39947408,67527.0,67526.0,0.001652]
[1729625794751,1.49494108,67527.0,67526.0,0.001652]
[1729625794980,1.28196209,67527.0,67526.0,0.001652]
[1729625795267,1.08870667,67527.0,67526.0,0.001652]
[1729625795765,1.13299297,67527.0,67526.0,0.001652]
[1729625796508,1.08870667,67527.0,67526.0,0.001652]
[1729625797711,0.64509797,67527.0,67526.0,0.001652]
[1729625797918,1.04250797,67527.0,67526.0,0.001652]
[1729625798176,1.19146712,67527.0,67526.0,0.001652]
[1729625798878,1.04250797,67527.0,67526.0,0.001652]
[1729625799139,0.47641843,67527.0,67526.0,0.001652]
[1729625803577,0.87382843,67527.0,67526.0,0.001652]
[1729625805745,0.89682843,67527.0,67526.0,0.001652]
[1729625806893,0.1768,67522.0,67506.0,0.001676]
[1729625807169,0.16867954,67515.0,67511.0,0.148122]
[1729625807421,0.16867954,67515.0,67512.0,0.14812]
[1729625807916,0.00684946,67514.0,67513.0,0.148119]
[1729625808141,0.06140967,67514.0,67513.0,0.148119]
[1729625809003,0.00684946,67514.0,67513.0,0.148119]
[1729625809528,0.16867954,67518.0,67513.0,0.148119]
[1729625809768,0.31763869,67518.0,67513.0,0.148119]